[Event "*** SCC Grand Prix: Titled Tuesday Blitz"]
[Site "Chess.com"]
[Date "2020.06.02"]
[Round "3"]
[White "rugbyclub"]
[Black "ChronicUnhappiness"]
[Result "1-0"]
[WhiteElo "2111"]
[BlackElo "2305"]
[TimeControl "180+1"]
[EndTime "10:27:31 PDT"]
[Termination "rugbyclub won on time"]

1. c4 {[%clk 0:03:00.9]} 1... Nf6 {[%clk 0:03:00.9]} 2. Nc3 {[%clk 0:03:00.4]}
2... e6 {[%clk 0:03:01.8]} 3. e4 {[%clk 0:02:59.8]} 3... d5 {[%clk 0:03:01.9]}
4. e5 {[%clk 0:02:59.9]} 4... d4 {[%clk 0:03:01.8]} 5. exf6 {[%clk 0:03:00.1]}
5... dxc3 {[%clk 0:03:01.7]} 6. bxc3 {[%clk 0:02:58.1]} 6... Qxf6 {[%clk
0:02:56.9]} 7. d4 {[%clk 0:02:58.5]} 7... c5 {[%clk 0:02:44]} 8. Nf3 {[%clk
0:02:57.3]} 8... h6 {[%clk 0:02:29.1]} 9. Bd3 {[%clk 0:02:55.2]} 9... cxd4
{[%clk 0:02:27.2]} 10. O-O {[%clk 0:02:49.5]} 10... dxc3 {[%clk 0:02:12]} 11.
Qe2 {[%clk 0:02:44.3]} 11... Nc6 {[%clk 0:02:10.4]} 12. Rb1 {[%clk 0:02:41]}
12... Bc5 {[%clk 0:01:53.5]} 13. Re1 {[%clk 0:02:35.3]} 13... O-O {[%clk
0:01:24.3]} 14. Qe4 {[%clk 0:02:34.5]} 14... Qf5 {[%clk 0:01:21.3]} 15. Qe2
{[%clk 0:02:30]} 15... Qh5 {[%clk 0:01:03.7]} 16. h3 {[%clk 0:02:26.3]} 16...
Rd8 {[%clk 0:00:57.2]} 17. Kh2 {[%clk 0:01:57.8]} 17... a6 {[%clk 0:00:52.5]}
18. g4 {[%clk 0:01:50.5]} 18... Ne5 {[%clk 0:00:09.7]} 19. gxh5 {[%clk
0:01:30.3]} 19... Nxd3 {[%clk 0:00:09.2]} 20. Rd1 {[%clk 0:01:27.2]} 20... Bd6+
{[%clk 0:00:01.9]} 21. Kh1 {[%clk 0:01:16.3]} 21... Nc5 {[%clk 0:00:02.8]} 22.
Bf4 {[%clk 0:01:02.9]} 1-0

[Event "*** SCC Grand Prix: Titled Tuesday Blitz"]
[Site "Chess.com"]
[Date "2020.06.02"]
[Round "3"]
[White "GMBenjaminBok"]
[Black "Ba_clbaf_osed_ingo_3v21"]
[Result "1-0"]
[WhiteElo "2912"]
[BlackElo "2656"]
[TimeControl "180+1"]
[EndTime "10:27:32 PDT"]
[Termination "GMBenjaminBok won by resignation"]

1. d4 {[%clk 0:03:00.9]} 1... Nf6 {[%clk 0:02:58.5]} 2. c4 {[%clk 0:03:00.7]}
2... g6 {[%clk 0:02:58.8]} 3. Nf3 {[%clk 0:02:58]} 3... Bg7 {[%clk 0:02:58.5]}
4. g3 {[%clk 0:02:58.6]} 4... c6 {[%clk 0:02:58]} 5. Bg2 {[%clk 0:02:55.9]} 5...
d5 {[%clk 0:02:58.3]} 6. b3 {[%clk 0:02:53.9]} 6... O-O {[%clk 0:02:56.8]} 7.
O-O {[%clk 0:02:53.8]} 7... dxc4 {[%clk 0:02:55.7]} 8. bxc4 {[%clk 0:02:53.6]}
8... c5 {[%clk 0:02:55.3]} 9. Bb2 {[%clk 0:02:54.2]} 9... cxd4 {[%clk
0:02:55.2]} 10. Nxd4 {[%clk 0:02:54.5]} 10... Nc6 {[%clk 0:02:55.6]} 11. Nxc6
{[%clk 0:02:52.3]} 11... bxc6 {[%clk 0:02:56.5]} 12. Nd2 {[%clk 0:02:48.4]}
12... Qc7 {[%clk 0:02:51.9]} 13. Nb3 {[%clk 0:02:39.6]} 13... Rb8 {[%clk
0:02:50.4]} 14. Qc1 {[%clk 0:02:35.3]} 14... Bg4 {[%clk 0:02:37.8]} 15. Qe3
{[%clk 0:02:26.8]} 15... Nd7 {[%clk 0:02:09.7]} 16. Bxg7 {[%clk 0:02:23.2]}
16... Kxg7 {[%clk 0:02:10.6]} 17. h3 {[%clk 0:01:59]} 17... Be6 {[%clk
0:02:01.9]} 18. Nd4 {[%clk 0:01:58.1]} 18... Qe5 {[%clk 0:01:11.9]} 19. Nxe6+
{[%clk 0:01:29.1]} 19... fxe6 {[%clk 0:00:57.8]} 20. Qxa7 {[%clk 0:01:24]} 20...
Rfd8 {[%clk 0:00:50.1]} 21. Bxc6 {[%clk 0:01:20]} 21... Nc5 {[%clk 0:00:35.9]}
22. Qxe7+ {[%clk 0:01:17.5]} 22... Kg8 {[%clk 0:00:36.3]} 23. Rad1 {[%clk
0:01:10.8]} 23... Rxd1 {[%clk 0:00:32.3]} 24. Rxd1 {[%clk 0:01:11.7]} 24... Qxe2
{[%clk 0:00:29.6]} 25. Rd8+ {[%clk 0:01:00.5]} 25... Rxd8 {[%clk 0:00:30]} 26.
Qxd8+ {[%clk 0:01:01.4]} 26... Kf7 {[%clk 0:00:30.4]} 27. Qe8+ {[%clk
0:00:51.7]} 27... Kf6 {[%clk 0:00:30.5]} 28. Qf8+ {[%clk 0:00:50]} 1-0

[Event "*** SCC Grand Prix: Titled Tuesday Blitz"]
[Site "Chess.com"]
[Date "2020.06.02"]
[Round "3"]
[White "SARGISMV"]
[Black "GMTalks_Youtube"]
[Result "0-1"]
[WhiteElo "2417"]
[BlackElo "2678"]
[TimeControl "180+1"]
[EndTime "10:27:32 PDT"]
[Termination "GMTalks_Youtube won by checkmate"]

1. d4 {[%clk 0:03:00.9]} 1... Nf6 {[%clk 0:02:58.8]} 2. c4 {[%clk 0:03:01.2]}
2... e6 {[%clk 0:02:58.4]} 3. Nc3 {[%clk 0:03:01.6]} 3... Bb4 {[%clk 0:02:58.4]}
4. e3 {[%clk 0:03:01.9]} 4... b6 {[%clk 0:02:56.9]} 5. Nf3 {[%clk 0:03:02]} 5...
Bb7 {[%clk 0:02:56.6]} 6. Bd2 {[%clk 0:03:02.4]} 6... O-O {[%clk 0:02:54.7]} 7.
Bd3 {[%clk 0:02:59.8]} 7... c5 {[%clk 0:02:39.3]} 8. a3 {[%clk 0:02:45.6]} 8...
Bxc3 {[%clk 0:02:35.6]} 9. Bxc3 {[%clk 0:02:46.5]} 9... d6 {[%clk 0:02:30.8]}
10. Qc2 {[%clk 0:02:36.9]} 10... Nbd7 {[%clk 0:02:29.9]} 11. O-O {[%clk
0:02:21.6]} 11... cxd4 {[%clk 0:02:17]} 12. Nxd4 {[%clk 0:02:04.9]} 12... a6
{[%clk 0:02:06.7]} 13. Rfd1 {[%clk 0:01:44.4]} 13... Rc8 {[%clk 0:02:04.4]} 14.
Qe2 {[%clk 0:01:33.4]} 14... Ne5 {[%clk 0:01:53.4]} 15. Rac1 {[%clk 0:01:16.9]}
15... Qe7 {[%clk 0:01:44.3]} 16. b3 {[%clk 0:00:56.9]} 16... Nxd3 {[%clk
0:01:41.6]} 17. Qxd3 {[%clk 0:00:52.4]} 17... Rfd8 {[%clk 0:01:40.5]} 18. Nf3
{[%clk 0:00:40.3]} 18... Ne4 {[%clk 0:01:34.6]} 19. Bb2 {[%clk 0:00:31.7]} 19...
e5 {[%clk 0:01:04.3]} 20. h3 {[%clk 0:00:15]} 20... Qf6 {[%clk 0:00:59.1]} 21.
Nd2 {[%clk 0:00:11.9]} 21... Qxf2+ {[%clk 0:00:57.6]} 22. Kh1 {[%clk 0:00:11.3]}
22... Ng3+ {[%clk 0:00:56.6]} 23. Kh2 {[%clk 0:00:10.1]} 23... Qxg2# {[%clk
0:00:57.5]} 0-1

[Event "*** SCC Grand Prix: Titled Tuesday Blitz"]
[Site "Chess.com"]
[Date "2020.06.02"]
[Round "3"]
[White "albano87"]
[Black "mohssenbinaddi"]
[Result "0-1"]
[WhiteElo "2442"]
[BlackElo "2075"]
[TimeControl "180+1"]
[EndTime "10:27:32 PDT"]
[Termination "mohssenbinaddi won on time"]

1. Nf3 {[%clk 0:03:00.9]} 1... c6 {[%clk 0:03:00.9]} 2. g3 {[%clk 0:02:59.1]}
2... d5 {[%clk 0:03:01.8]} 3. Bg2 {[%clk 0:02:58.5]} 3... Bg4 {[%clk 0:03:02.4]}
4. O-O {[%clk 0:02:58.2]} 4... Nd7 {[%clk 0:03:02.8]} 5. d4 {[%clk 0:02:55.9]}
5... e6 {[%clk 0:03:02.9]} 6. Nbd2 {[%clk 0:02:55.8]} 6... Bd6 {[%clk
0:03:02.8]} 7. h3 {[%clk 0:02:50]} 7... Bf5 {[%clk 0:03:01.4]} 8. c4 {[%clk
0:02:46]} 8... Ngf6 {[%clk 0:03:00.2]} 9. Qb3 {[%clk 0:02:37.6]} 9... Qb6 {[%clk
0:02:55.1]} 10. c5 {[%clk 0:02:33]} 10... Qxb3 {[%clk 0:02:54.4]} 11. axb3
{[%clk 0:02:32.5]} 11... Bc7 {[%clk 0:02:54.7]} 12. b4 {[%clk 0:02:30.3]} 12...
a6 {[%clk 0:02:54.6]} 13. g4 {[%clk 0:02:13.3]} 13... Bc2 {[%clk 0:02:51.6]} 14.
Ne1 {[%clk 0:02:09.8]} 14... Bg6 {[%clk 0:02:49.8]} 15. Nb3 {[%clk 0:01:38.9]}
15... h5 {[%clk 0:02:47]} 16. g5 {[%clk 0:01:36.7]} 16... Ne4 {[%clk 0:02:34.4]}
17. h4 {[%clk 0:01:03.5]} 17... O-O {[%clk 0:02:27.5]} 18. Na5 {[%clk
0:01:00.3]} 18... Rab8 {[%clk 0:02:22.5]} 19. Nd3 {[%clk 0:00:57]} 19... Rfe8
{[%clk 0:02:07.8]} 20. Bf4 {[%clk 0:00:32.5]} 20... e5 {[%clk 0:02:03]} 21. dxe5
{[%clk 0:00:29.6]} 21... Nxe5 {[%clk 0:02:02]} 22. Nxe5 {[%clk 0:00:25.6]} 22...
Bxe5 {[%clk 0:02:01.1]} 23. Bxe5 {[%clk 0:00:25.8]} 23... Rxe5 {[%clk
0:02:01.2]} 24. e3 {[%clk 0:00:22.5]} 24... Re7 {[%clk 0:01:48.7]} 25. Rfd1
{[%clk 0:00:20]} 25... f6 {[%clk 0:01:43.2]} 26. gxf6 {[%clk 0:00:17.7]} 26...
Nxf6 {[%clk 0:01:41.5]} 27. Ra3 {[%clk 0:00:15.9]} 27... Ng4 {[%clk 0:01:41]}
28. Bh3 {[%clk 0:00:11.7]} 28... Ne5 {[%clk 0:01:38.5]} 29. Bg2 {[%clk
0:00:08.7]} 29... Rf8 {[%clk 0:01:37.8]} 30. f4 {[%clk 0:00:04.3]} 30... Ng4
{[%clk 0:01:37.7]} 31. Re1 {[%clk 0:00:04.2]} 31... Rxf4 {[%clk 0:01:35.6]} 32.
Bh3 {[%clk 0:00:02.2]} 32... Rxb4 {[%clk 0:01:30.6]} 0-1

[Event "*** SCC Grand Prix: Titled Tuesday Blitz"]
[Site "Chess.com"]
[Date "2020.06.02"]
[Round "3"]
[White "Twiceblessed"]
[Black "Susal_De_Silva"]
[Result "0-1"]
[WhiteElo "2511"]
[BlackElo "2345"]
[TimeControl "180+1"]
[EndTime "10:27:35 PDT"]
[Termination "Susal_De_Silva won by resignation"]

1. d4 {[%clk 0:03:00.9]} 1... Nf6 {[%clk 0:03:00.1]} 2. c4 {[%clk 0:03:01.3]}
2... e6 {[%clk 0:03:00.6]} 3. Nf3 {[%clk 0:03:01.8]} 3... b6 {[%clk 0:02:59.9]}
4. g3 {[%clk 0:03:01.5]} 4... Bb7 {[%clk 0:03:00.4]} 5. Bg2 {[%clk 0:03:01.9]}
5... g6 {[%clk 0:03:01.1]} 6. O-O {[%clk 0:03:00.2]} 6... Bg7 {[%clk 0:03:01.4]}
7. Nc3 {[%clk 0:02:51.9]} 7... Ne4 {[%clk 0:03:00.3]} 8. Nxe4 {[%clk 0:02:51.5]}
8... Bxe4 {[%clk 0:02:59.1]} 9. Bg5 {[%clk 0:02:52.1]} 9... Qc8 {[%clk
0:02:51.7]} 10. Qd2 {[%clk 0:02:52]} 10... O-O {[%clk 0:02:49.6]} 11. Rfd1
{[%clk 0:02:36.2]} 11... d6 {[%clk 0:02:46.7]} 12. Rac1 {[%clk 0:02:31]} 12...
Nd7 {[%clk 0:02:43.3]} 13. Qf4 {[%clk 0:02:24.2]} 13... Qb7 {[%clk 0:02:32.5]}
14. Bh6 {[%clk 0:02:18.4]} 14... e5 {[%clk 0:02:14]} 15. Qh4 {[%clk 0:02:00]}
15... Bf6 {[%clk 0:01:38.6]} 16. Bg5 {[%clk 0:01:57.5]} 16... Bg7 {[%clk
0:01:22.4]} 17. Bh6 {[%clk 0:01:49.2]} 17... Bxh6 {[%clk 0:01:14.6]} 18. Qxh6
{[%clk 0:01:46.5]} 18... Bxf3 {[%clk 0:01:14.3]} 19. Bxf3 {[%clk 0:01:46.1]}
19... e4 {[%clk 0:01:14.3]} 20. Bg2 {[%clk 0:01:41.3]} 20... f5 {[%clk
0:01:14.5]} 21. h4 {[%clk 0:01:26]} 21... Nf6 {[%clk 0:01:10.9]} 22. h5 {[%clk
0:01:25.9]} 22... Nxh5 {[%clk 0:01:05.8]} 23. g4 {[%clk 0:01:20.1]} 23... Ng7
{[%clk 0:01:02]} 24. c5 {[%clk 0:01:14.6]} 24... f4 {[%clk 0:00:54]} 25. Rc3
{[%clk 0:00:56.4]} 25... f3 {[%clk 0:00:51.5]} 26. exf3 {[%clk 0:00:47.7]} 26...
exf3 {[%clk 0:00:52.4]} 27. c6 {[%clk 0:00:48.2]} 27... Qc8 {[%clk 0:00:51.4]}
28. Bxf3 {[%clk 0:00:47.9]} 28... Rxf3 {[%clk 0:00:49.1]} 29. Rxf3 {[%clk
0:00:47.1]} 29... Qxg4+ {[%clk 0:00:49.1]} 30. Kf1 {[%clk 0:00:41.8]} 30... Qxf3
{[%clk 0:00:48.9]} 31. Re1 {[%clk 0:00:42.4]} 31... Rf8 {[%clk 0:00:48.2]} 0-1

[Event "*** SCC Grand Prix: Titled Tuesday Blitz"]
[Site "Chess.com"]
[Date "2020.06.02"]
[Round "3"]
[White "EnergeticHay"]
[Black "grunbergmihai"]
[Result "0-1"]
[WhiteElo "2190"]
[BlackElo "2383"]
[TimeControl "180+1"]
[EndTime "10:27:36 PDT"]
[Termination "grunbergmihai won by resignation"]

1. e4 {[%clk 0:03:00.9]} 1... c5 {[%clk 0:02:59.9]} 2. Nf3 {[%clk 0:03:00.5]}
2... Nc6 {[%clk 0:03:00.1]} 3. d4 {[%clk 0:03:00.4]} 3... cxd4 {[%clk
0:03:00.1]} 4. Nxd4 {[%clk 0:03:01.3]} 4... e6 {[%clk 0:03:00.8]} 5. Nc3 {[%clk
0:02:51.2]} 5... a6 {[%clk 0:03:00.4]} 6. Be3 {[%clk 0:02:50.6]} 6... Qc7 {[%clk
0:03:00]} 7. Qf3 {[%clk 0:02:50.8]} 7... Nf6 {[%clk 0:02:55.7]} 8. O-O-O {[%clk
0:02:50.2]} 8... h5 {[%clk 0:02:40.6]} 9. Nxc6 {[%clk 0:02:29.5]} 9... dxc6
{[%clk 0:02:31.9]} 10. e5 {[%clk 0:02:07.2]} 10... Qxe5 {[%clk 0:02:24]} 11. Bf4
{[%clk 0:02:07.3]} 11... Qa5 {[%clk 0:02:23]} 12. Bc4 {[%clk 0:02:01.2]} 12...
Bb4 {[%clk 0:02:11.3]} 13. Qg3 {[%clk 0:01:53.9]} 13... Bxc3 {[%clk 0:02:06]}
14. bxc3 {[%clk 0:01:52.3]} 14... O-O {[%clk 0:01:46.5]} 15. Bd6 {[%clk
0:01:37.4]} 15... Re8 {[%clk 0:01:40.1]} 16. f3 {[%clk 0:01:31.5]} 16... e5
{[%clk 0:01:29.4]} 17. Rhe1 {[%clk 0:01:09.1]} 17... Qxc3 {[%clk 0:01:12.6]} 18.
Bb3 {[%clk 0:01:08.6]} 18... Be6 {[%clk 0:01:07.9]} 19. Bxe5 {[%clk 0:01:05.3]}
19... h4 {[%clk 0:01:07]} 20. Qg5 {[%clk 0:00:59.6]} 20... Qc5 {[%clk 0:00:55]}
21. Bxf6 {[%clk 0:00:41.6]} 21... Qxg5+ {[%clk 0:00:54.1]} 22. Bxg5 {[%clk
0:00:42.5]} 22... h3 {[%clk 0:00:54.1]} 23. Bxe6 {[%clk 0:00:41.4]} 23... fxe6
{[%clk 0:00:53.6]} 24. gxh3 {[%clk 0:00:41.5]} 24... Kf7 {[%clk 0:00:53.1]} 25.
Rd7+ {[%clk 0:00:40.8]} 25... Kg6 {[%clk 0:00:53]} 26. Rd5 {[%clk 0:00:41.7]}
26... exd5 {[%clk 0:00:51.9]} 27. Rg1 {[%clk 0:00:40.2]} 27... Kf5 {[%clk
0:00:51]} 28. Bd2 {[%clk 0:00:38.9]} 28... g6 {[%clk 0:00:49.9]} 29. Rg5+ {[%clk
0:00:39.2]} 29... Kf6 {[%clk 0:00:49.9]} 30. h4 {[%clk 0:00:39.6]} 30... Re2
{[%clk 0:00:48.5]} 31. Kd1 {[%clk 0:00:39.5]} 31... Rxh2 {[%clk 0:00:46.9]} 32.
Bf4 {[%clk 0:00:39.4]} 0-1

[Event "*** SCC Grand Prix: Titled Tuesday Blitz"]
[Site "Chess.com"]
[Date "2020.06.02"]
[Round "3"]
[White "talman67"]
[Black "TheNextLevelFan"]
[Result "0-1"]
[WhiteElo "2561"]
[BlackElo "2423"]
[TimeControl "180+1"]
[EndTime "10:27:39 PDT"]
[Termination "TheNextLevelFan won by resignation"]

1. e4 {[%clk 0:03:00.9]} 1... e5 {[%clk 0:02:59.3]} 2. Nf3 {[%clk 0:03:00.7]}
2... Nc6 {[%clk 0:02:59.5]} 3. Bb5 {[%clk 0:03:01.2]} 3... a6 {[%clk 0:02:59.7]}
4. Ba4 {[%clk 0:03:01.8]} 4... Nf6 {[%clk 0:03:00.1]} 5. O-O {[%clk 0:03:02.3]}
5... Be7 {[%clk 0:03:00.7]} 6. Re1 {[%clk 0:03:02.6]} 6... b5 {[%clk 0:03:01.3]}
7. Bb3 {[%clk 0:03:03.1]} 7... O-O {[%clk 0:03:02]} 8. a4 {[%clk 0:03:01.5]}
8... b4 {[%clk 0:02:59.9]} 9. d3 {[%clk 0:02:58.5]} 9... d6 {[%clk 0:02:59.8]}
10. a5 {[%clk 0:02:54.1]} 10... Be6 {[%clk 0:02:53.5]} 11. Bxe6 {[%clk 0:02:54]}
11... fxe6 {[%clk 0:02:53.4]} 12. Nbd2 {[%clk 0:02:51.6]} 12... Na7 {[%clk
0:02:47.5]} 13. c3 {[%clk 0:02:39.1]} 13... bxc3 {[%clk 0:02:41.6]} 14. bxc3
{[%clk 0:02:40]} 14... Nb5 {[%clk 0:02:39.6]} 15. Qb3 {[%clk 0:02:39.9]} 15...
Qd7 {[%clk 0:02:34.1]} 16. Ng5 {[%clk 0:02:38.6]} 16... d5 {[%clk 0:02:18.4]}
17. Ndf3 {[%clk 0:02:29]} 17... Bd6 {[%clk 0:02:14.3]} 18. exd5 {[%clk
0:02:13.3]} 18... exd5 {[%clk 0:02:14.4]} 19. c4 {[%clk 0:02:13.6]} 19... Nd4
{[%clk 0:02:08.8]} 20. Nxd4 {[%clk 0:02:05]} 20... exd4 {[%clk 0:02:09.7]} 21.
cxd5 {[%clk 0:02:02.6]} 21... Ng4 {[%clk 0:02:07]} 22. Nf3 {[%clk 0:01:52.4]}
22... Rxf3 {[%clk 0:02:05.2]} 23. gxf3 {[%clk 0:01:53.3]} 23... Nxh2 {[%clk
0:02:05.8]} 24. Kg2 {[%clk 0:01:53.8]} 24... Rf8 {[%clk 0:02:02.9]} 25. Re4
{[%clk 0:01:29.4]} 25... Rxf3 {[%clk 0:01:56.7]} 26. Rh4 {[%clk 0:01:13.5]}
26... h6 {[%clk 0:01:23.3]} 27. Ba3 {[%clk 0:00:53.3]} 27... Qf5 {[%clk
0:00:57.8]} 0-1

[Event "*** SCC Grand Prix: Titled Tuesday Blitz"]
[Site "Chess.com"]
[Date "2020.06.02"]
[Round "3"]
[White "secretsuperstar7"]
[Black "LedakovAlexandr"]
[Result "0-1"]
[WhiteElo "2211"]
[BlackElo "2491"]
[TimeControl "180+1"]
[EndTime "10:27:42 PDT"]
[Termination "LedakovAlexandr won by resignation"]

1. d4 {[%clk 0:03:00.9]} 1... Nc6 {[%clk 0:03:00.9]} 2. d5 {[%clk 0:02:57.7]}
2... Ne5 {[%clk 0:03:00.6]} 3. e4 {[%clk 0:02:55.3]} 3... Ng6 {[%clk 0:02:59.9]}
4. c4 {[%clk 0:02:53.4]} 4... e5 {[%clk 0:02:58.9]} 5. dxe6 {[%clk 0:02:50]}
5... dxe6 {[%clk 0:02:58.8]} 6. Qxd8+ {[%clk 0:02:46.6]} 6... Kxd8 {[%clk
0:02:59.7]} 7. Nc3 {[%clk 0:02:46.2]} 7... Bd7 {[%clk 0:02:58.7]} 8. Bd2 {[%clk
0:02:41.3]} 8... Nf6 {[%clk 0:02:57.5]} 9. Be2 {[%clk 0:02:38.4]} 9... Bb4
{[%clk 0:02:54.3]} 10. f3 {[%clk 0:02:35.9]} 10... Bc5 {[%clk 0:02:54.1]} 11.
O-O-O {[%clk 0:02:35]} 11... Kc8 {[%clk 0:02:53]} 12. Nh3 {[%clk 0:02:34.6]}
12... e5 {[%clk 0:02:45.4]} 13. Ng5 {[%clk 0:02:27.4]} 13... Rf8 {[%clk
0:02:40.8]} 14. Nd5 {[%clk 0:02:22.4]} 14... Nxd5 {[%clk 0:02:39.2]} 15. cxd5
{[%clk 0:02:18.4]} 15... h6 {[%clk 0:02:39.7]} 16. Nh3 {[%clk 0:02:08.3]} 16...
Bxh3 {[%clk 0:02:39.9]} 17. gxh3 {[%clk 0:02:07.8]} 17... a5 {[%clk 0:02:22.6]}
18. Kb1 {[%clk 0:01:59.4]} 18... Rd8 {[%clk 0:02:12.2]} 19. Rc1 {[%clk
0:01:55.2]} 19... Bb6 {[%clk 0:02:12.1]} 20. Rhg1 {[%clk 0:01:41.9]} 20... Bxg1
{[%clk 0:01:47.6]} 21. Rxg1 {[%clk 0:01:29.6]} 21... Rg8 {[%clk 0:01:41]} 22.
Rc1 {[%clk 0:01:24.2]} 22... Kd8 {[%clk 0:01:35.1]} 23. Be3 {[%clk 0:01:06.3]}
23... Nf4 {[%clk 0:01:33.2]} 24. Bb5 {[%clk 0:00:58]} 24... g5 {[%clk
0:01:25.3]} 25. a3 {[%clk 0:00:38.2]} 25... Rg6 {[%clk 0:01:23.3]} 26. Rd1
{[%clk 0:00:31.4]} 26... Nxh3 {[%clk 0:01:19.2]} 27. Bc5 {[%clk 0:00:22.5]}
27... Rd6 {[%clk 0:01:17.6]} 28. Bxd6 {[%clk 0:00:20.5]} 28... cxd6 {[%clk
0:01:18.5]} 29. b4 {[%clk 0:00:15.3]} 29... axb4 {[%clk 0:01:17.6]} 30. axb4
{[%clk 0:00:14.9]} 30... Ra3 {[%clk 0:01:18.1]} 31. Rd3 {[%clk 0:00:14.9]} 31...
Rxd3 {[%clk 0:01:16.4]} 32. Bxd3 {[%clk 0:00:14.4]} 32... Ng1 {[%clk 0:01:17.3]}
33. Kb2 {[%clk 0:00:11]} 33... Nxf3 {[%clk 0:01:16.7]} 34. Kc3 {[%clk 0:00:11]}
34... Nxh2 {[%clk 0:01:15.2]} 0-1

[Event "*** SCC Grand Prix: Titled Tuesday Blitz"]
[Site "Chess.com"]
[Date "2020.06.02"]
[Round "3"]
[White "gui_borba"]
[Black "stoleriu"]
[Result "0-1"]
[WhiteElo "2307"]
[BlackElo "2537"]
[TimeControl "180+1"]
[EndTime "10:27:45 PDT"]
[Termination "stoleriu won by resignation"]

1. d4 {[%clk 0:03:00.9]} 1... e6 {[%clk 0:02:59.2]} 2. e4 {[%clk 0:02:59.5]}
2... d5 {[%clk 0:02:58.9]} 3. Nc3 {[%clk 0:03:00.1]} 3... Bb4 {[%clk 0:02:57.5]}
4. e5 {[%clk 0:02:58.1]} 4... c5 {[%clk 0:02:57.3]} 5. a3 {[%clk 0:02:56.6]}
5... Bxc3+ {[%clk 0:02:57.3]} 6. bxc3 {[%clk 0:02:57.5]} 6... Qc7 {[%clk
0:02:57.6]} 7. Ne2 {[%clk 0:02:56.4]} 7... b6 {[%clk 0:02:54.8]} 8. g3 {[%clk
0:02:42.6]} 8... Ba6 {[%clk 0:02:53.4]} 9. Qd2 {[%clk 0:02:38.4]} 9... Ne7
{[%clk 0:02:51.2]} 10. Nf4 {[%clk 0:02:33.7]} 10... Bxf1 {[%clk 0:02:40.9]} 11.
Kxf1 {[%clk 0:02:34.6]} 11... O-O {[%clk 0:02:38.5]} 12. h4 {[%clk 0:02:34]}
12... Nbc6 {[%clk 0:02:37.5]} 13. Kg2 {[%clk 0:02:32.7]} 13... Rac8 {[%clk
0:02:37.1]} 14. h5 {[%clk 0:02:26.5]} 14... cxd4 {[%clk 0:02:26.7]} 15. cxd4
{[%clk 0:02:27.4]} 15... Na5 {[%clk 0:02:26.1]} 16. Qb4 {[%clk 0:02:14.7]} 16...
Rfe8 {[%clk 0:02:16.5]} 17. h6 {[%clk 0:01:56]} 17... g6 {[%clk 0:02:15.3]} 18.
Be3 {[%clk 0:01:50.4]} 18... Qxc2 {[%clk 0:02:09.8]} 19. Rhc1 {[%clk 0:01:47.3]}
19... Qe4+ {[%clk 0:02:08]} 20. Kg1 {[%clk 0:01:43.9]} 20... Nf5 {[%clk
0:02:01.9]} 21. Rxc8 {[%clk 0:01:32.3]} 21... Rxc8 {[%clk 0:02:02.8]} 22. Rc1
{[%clk 0:01:32.4]} 22... Nc4 {[%clk 0:01:42.4]} 23. Ng2 {[%clk 0:00:56.2]} 23...
Nxd4 {[%clk 0:01:20.3]} 24. Qe7 {[%clk 0:00:39.2]} 24... Nf5 {[%clk 0:01:17.8]}
25. Qf6 {[%clk 0:00:31]} 25... Re8 {[%clk 0:01:08.1]} 26. Nh4 {[%clk 0:00:29.8]}
26... Qxe5 {[%clk 0:01:05.9]} 27. Qxe5 {[%clk 0:00:16.6]} 27... Nxe5 {[%clk
0:01:06.8]} 28. Nxf5 {[%clk 0:00:17.2]} 28... gxf5 {[%clk 0:01:05.1]} 29. Rc7
{[%clk 0:00:18.1]} 29... d4 {[%clk 0:00:53.7]} 30. Bxd4 {[%clk 0:00:17.1]} 30...
Nf3+ {[%clk 0:00:53.6]} 0-1

[Event "*** SCC Grand Prix: Titled Tuesday Blitz"]
[Site "Chess.com"]
[Date "2020.06.02"]
[Round "3"]
[White "tomasdanada"]
[Black "Jungle_Jaguar"]
[Result "0-1"]
[WhiteElo "2229"]
[BlackElo "2607"]
[TimeControl "180+1"]
[EndTime "10:27:45 PDT"]
[Termination "Jungle_Jaguar won on time"]

1. d4 {[%clk 0:03:00.9]} 1... Nf6 {[%clk 0:02:59.7]} 2. c4 {[%clk 0:02:54.6]}
2... e6 {[%clk 0:03:00]} 3. Nc3 {[%clk 0:02:54.9]} 3... d5 {[%clk 0:03:00.3]} 4.
Nf3 {[%clk 0:02:53.7]} 4... Be7 {[%clk 0:03:00.4]} 5. Bf4 {[%clk 0:02:52]} 5...
O-O {[%clk 0:03:00.7]} 6. Rc1 {[%clk 0:02:51.8]} 6... Nbd7 {[%clk 0:03:00.7]} 7.
e3 {[%clk 0:02:49.9]} 7... c6 {[%clk 0:03:00.6]} 8. c5 {[%clk 0:02:44.5]} 8...
b6 {[%clk 0:03:00.6]} 9. b4 {[%clk 0:02:44.1]} 9... a5 {[%clk 0:03:00.8]} 10. a3
{[%clk 0:02:44.3]} 10... Re8 {[%clk 0:02:55]} 11. h3 {[%clk 0:02:42.2]} 11...
Ba6 {[%clk 0:02:53.1]} 12. b5 {[%clk 0:02:20]} 12... cxb5 {[%clk 0:02:49]} 13.
c6 {[%clk 0:02:18.4]} 13... b4 {[%clk 0:02:43]} 14. cxd7 {[%clk 0:02:15.4]}
14... Qxd7 {[%clk 0:02:43.2]} 15. Bxa6 {[%clk 0:02:09.1]} 15... bxc3 {[%clk
0:02:38.4]} 16. Qd3 {[%clk 0:02:04.5]} 16... Bxa3 {[%clk 0:02:37.7]} 17. O-O
{[%clk 0:01:47.3]} 17... Bxc1 {[%clk 0:02:33.7]} 18. Bb5 {[%clk 0:01:47]} 18...
Qe7 {[%clk 0:02:23.2]} 19. Bxe8 {[%clk 0:01:42.5]} 19... Bb2 {[%clk 0:02:09.8]}
20. Ba4 {[%clk 0:01:41.6]} 20... Qb4 {[%clk 0:02:07]} 21. Bc2 {[%clk 0:01:22.3]}
21... a4 {[%clk 0:01:58.7]} 22. Ng5 {[%clk 0:01:18.1]} 22... h6 {[%clk
0:01:58.1]} 23. Nxf7 {[%clk 0:00:51.1]} 23... Kxf7 {[%clk 0:01:57.8]} 24. Qg6+
{[%clk 0:00:51.4]} 24... Kf8 {[%clk 0:01:31.4]} 25. Bxh6 {[%clk 0:00:49.8]}
25... Qe7 {[%clk 0:01:31.2]} 26. Bg5 {[%clk 0:00:36.5]} 26... a3 {[%clk
0:01:27.6]} 27. e4 {[%clk 0:00:20]} 27... dxe4 {[%clk 0:01:25.4]} 28. Bxe4
{[%clk 0:00:17.2]} 28... Ra5 {[%clk 0:01:24.8]} 29. d5 {[%clk 0:00:10.9]} 29...
exd5 {[%clk 0:01:20.4]} 30. Bb1 {[%clk 0:00:01.6]} 30... a2 {[%clk 0:01:16.6]}
31. Bxa2 {[%clk 0:00:01.4]} 31... Rxa2 {[%clk 0:01:17.5]} 0-1